fUSD/lending_fUSD_20260517
["ID","MTS","AMOUNT","RATE_DAILY","PERIOD"]
[422513058,1779017446000,-26769.59424995,0.0002,2]
[422513062,1779017446000,-52317.08224419,0.0002,2]
[422513061,1779017446000,-486.11373317,0.0002,2]
[422513064,1779017446000,-152.0,0.0002,2]
[422513066,1779017446000,-2729.56929254,0.0002,7]
[422513067,1779017446000,-537.81326358,0.0002,7]
[422513043,1779017446000,-313.78309455,0.00019999,2]
[422513060,1779017446000,-200.0,0.0002,2]
[422513040,1779017446000,-500.0,0.00019999,2]
[422513022,1779017446000,-6373.36728972,0.00019101,4]
[422513039,1779017446000,-300.0,0.00019999,2]
[422513016,1779017446000,-164.41,0.00019003,2]
[422513014,1779017446000,-418.0,0.00019,2]
[422513015,1779017446000,-172.0,0.00019,2]
[422513017,1779017446000,-1481.62475677,0.0001905,2]
[422513018,1779017446000,-203.56,0.00019091,2]
[422513019,1779017446000,-171.30607919,0.000191,4]
[422513021,1779017446000,-15000.0,0.00019101,4]
[422513020,1779017446000,-15000.0,0.00019101,4]
[422513065,1779017446000,-3007.672544,0.0002,2]
[422513025,1779017446000,-3000.0,0.00019178,7]
[422513023,1779017446000,-506.24551961,0.00019178,2]
[422513042,1779017446000,-427.20654019,0.00019999,2]
[422513024,1779017446000,-3000.0,0.00019178,2]
[422513037,1779017446000,-2129.0,0.00019947,2]
[422513029,1779017446000,-251.11897888,0.00019194,2]
[422513033,1779017446000,-4609.0,0.000196,2]
[422513026,1779017446000,-599.60298507,0.00019193,2]
[422513028,1779017446000,-2494.55939289,0.00019194,2]
[422513030,1779017446000,-215.0785988,0.000192,7]
[422513034,1779017446000,-217.15233878,0.00019742,2]
[422513032,1779017446000,-518.88,0.000194,2]
[422513035,1779017446000,-2177.57835665,0.00019742,2]
[422513036,1779017446000,-260.4103811,0.00019742,2]
[422513031,1779017446000,-1152.0,0.00019333,2]
[422513027,1779017446000,-209.40437684,0.00019194,2]
[422513070,1779017446000,-1927.0,0.0002,2]
[422513059,1779017446000,-1311.36258266,0.0002,2]
[422513069,1779017446000,-852.0,0.0002,2]
[422513105,1779017446000,-150.0,0.0002058,2]
[422513106,1779017446000,-150.0,0.0002058,2]
[422513101,1779017446000,-150.0,0.0002058,2]
[422513104,1779017446000,-150.0,0.0002058,2]
[422513100,1779017446000,-150.0,0.0002058,2]
[422513102,1779017446000,-150.0,0.0002058,2]
[422513108,1779017446000,-22962.33398337,0.000207,2]
[422513103,1779017446000,-150.0,0.0002058,2]
[422513107,1779017446000,-300.0,0.00020699,2]
[422513110,1779017446000,-280.03725112,0.00020838,2]
[422513121,1779017446000,-15000.0,0.00021,2]
[422513111,1779017446000,-300.0,0.00020999,2]
[422513120,1779017446000,-153.0,0.00021,2]
[422513112,1779017446000,-1209.03378583,0.00021,2]
[422513115,1779017446000,-1230.48948908,0.00021,7]
[422513113,1779017446000,-199.54371661,0.00021,2]
[422513114,1779017446000,-160.0,0.00021,7]
[422513118,1779017446000,-510.0,0.00021,2]
[422513119,1779017446000,-661.0,0.00021,2]
[422513117,1779017446000,-165.47870466,0.00021,2]
[422513116,1779017446000,-154.0,0.00021,2]
[422513122,1779017446000,-6111.0,0.00021,2]
[422513124,1779017446000,-15000.0,0.00021,2]
[422513123,1779017446000,-525.27670665,0.00021,2]
[422513068,1779017446000,-181.42,0.0002,2]
[422513097,1779017446000,-3980.73,0.00020548,2]
[422513099,1779017446000,-3980.72,0.00020548,2]
[422513109,1779017446000,-233.51889341,0.00020838,2]
[422513094,1779017446000,-1290.8,0.00020381,2]
[422513071,1779017446000,-152.0,0.0002,7]
[422513098,1779017446000,-3980.73,0.00020548,2]
[422513074,1779017446000,-26034.0,0.0002,2]
[422513075,1779017446000,-154.0,0.0002,2]
[422513076,1779017446000,-152.0,0.0002,2]
[422513078,1779017446000,-661.0,0.0002,2]
[422513080,1779017446000,-153.0,0.0002,2]
[422513077,1779017446000,-510.0,0.0002,2]
[422513081,1779017446000,-15000.0,0.0002,2]
[422513073,1779017446000,-199148.0,0.0002,2]
[422513079,1779017446000,-194.168,0.0002,2]
[422513082,1779017446000,-6111.0,0.0002,2]
[422513083,1779017446000,-418.0,0.0002,2]
[422513072,1779017446000,-152.0,0.0002,7]
[422513092,1779017446000,-225.18697532,0.0002029,2]
[422513085,1779017446000,-528.03498059,0.0002012,2]
[422513090,1779017446000,-150.0,0.00020205,2]
[422513088,1779017446000,-150.0,0.00020205,2]
[422513093,1779017446000,-270.0455652,0.0002029,2]
[422513091,1779017446000,-157.0,0.00020205,2]
[422513086,1779017446000,-150.0,0.00020205,2]
[422513087,1779017446000,-150.0,0.00020205,2]
[422513096,1779017446000,-3980.73,0.00020548,2]
[422513095,1779017446000,-2000.0,0.00020475,2]
[422513084,1779017446000,-482.01,0.0002,2]
[422513089,1779017446000,-150.0,0.00020205,2]
[422513163,1779017447000,-172.54,0.00022149,2]
[422513161,1779017447000,-153.0,0.00022,2]
[422513158,1779017447000,-154.0,0.00022,2]
[422513165,1779017447000,-1290.8,0.00022353,2]
[422513159,1779017447000,-510.0,0.00022,2]
[422513156,1779017447000,-160.0,0.00022,2]
[422513162,1779017447000,-418.0,0.00022,2]
[422513166,1779017447000,-406.01635241,0.00022407,2]
[422513164,1779017447000,-601.15,0.00022267,2]
[422513168,1779017447000,-406.0163524,0.00022407,2]
[422513160,1779017447000,-661.0,0.00022,2]
[422513157,1779017447000,-300.0,0.00022,2]
[422513176,1779017447000,-3657.25469867,0.000226,2]
[422513174,1779017447000,-300.0,0.00022499,2]
[422513177,1779017447000,-1179.25224985,0.000226,2]
[422513171,1779017447000,-1575.83,0.00022466,2]
[422513170,1779017447000,-1694.95,0.00022466,2]
[422513169,1779017447000,-501.41180139,0.00022435,2]
[422513172,1779017447000,-1756.73,0.00022466,2]
[422513173,1779017447000,-260.4103811,0.00022482,2]
[422513175,1779017447000,-36009.8973857,0.000225,2]
[422513190,1779017447000,-400.0,0.00023006,2]
[422513179,1779017447000,-319.0504328,0.00022831,2]
[422513189,1779017447000,-418.0,0.00023,2]
[422513181,1779017447000,-151.0,0.00022997,7]
[422513167,1779017447000,-406.0163524,0.00022407,2]
[422513154,1779017447000,-251.11897888,0.00021934,2]
[422513126,1779017447000,-418.0,0.00021,2]
[422513150,1779017447000,-1004.62,0.00021918,2]
[422513180,1779017447000,-500.0,0.00022928,5]
[422513125,1779017447000,-6111.0,0.00021,2]
[422513128,1779017447000,-10000.0,0.00021,2]
[422513130,1779017447000,-5000.01,0.00021,2]
[422513127,1779017447000,-2375.7,0.00021,2]
[422513129,1779017447000,-325.0,0.00021,2]
[422513131,1779017447000,-5000.01,0.00021,2]
[422513134,1779017447000,-10000.01,0.00021,2]
[422513132,1779017447000,-5000.01,0.00021,2]
[422513133,1779017447000,-5000.01,0.00021,2]
[422513135,1779017447000,-2805.00325221,0.00021,2]
[422513136,1779017447000,-5865.75645904,0.00021,2]
[422513151,1779017447000,-319.0504328,0.00021918,2]
[422513137,1779017447000,-2798.68773875,0.00021,2]
[422513138,1779017447000,-166.22900262,0.00021,2]
[422513140,1779017447000,-297.39678444,0.00021386,2]
[422513142,1779017447000,-9912.14558472,0.000215,2]
[422513147,1779017447000,-5000.0,0.00021918,2]
[422513145,1779017447000,-3620.0,0.00021607,2]
[422513144,1779017447000,-174.33,0.00021579,2]
[422513143,1779017447000,-6453.0,0.0002156,2]
[422513148,1779017447000,-742.1877375,0.00021918,3]
[422513152,1779017447000,-283.43953358,0.00021932,2]
[422513141,1779017447000,-518.88,0.000214,2]
[422513146,1779017447000,-482.01,0.00021861,2]
[422513149,1779017447000,-3075.54,0.00021918,2]
[422513139,1779017447000,-242.15909246,0.00021386,2]
[422513182,1779017447000,-500.8620181,0.00022999,2]
[422513230,1779017447000,-1338.79,0.00024174,2]
[422513178,1779017447000,-530.8644361,0.0002271,2]
[422513226,1779017447000,-665.48457954,0.00024,2]
[422513221,1779017447000,-3600.0,0.00024,2]
[422513215,1779017447000,-4386.0,0.00023387,2]
[422513218,1779017447000,-482.01,0.00023723,2]
[422513220,1779017447000,-1037.42246504,0.00024,2]
[422513223,1779017447000,-208.48490792,0.00024,7]
[422513225,1779017447000,-522.70135963,0.00024,2]
[422513222,1779017447000,-1254.40750477,0.00024,2]
[422513217,1779017447000,-9035.0,0.00023716,2]
[422513219,1779017447000,-319.0504328,0.00023744,2]
[422513224,1779017447000,-156.45405378,0.00024,2]
[422513238,1779017447000,-151.0,0.00024658,2]
[422513216,1779017447000,-280.03725112,0.00023578,2]
[422513228,1779017447000,-435.0,0.00024,2]
[422513227,1779017447000,-170.0,0.00024,2]
[422513229,1779017447000,-224.12897401,0.00024126,2]
[422513234,1779017447000,-1993.8,0.00024174,2]
[422513232,1779017447000,-728.65,0.00024174,2]
[422513237,1779017447000,-1000.0,0.00024658,2]
[422513233,1779017447000,-236.6,0.00024174,2]
[422513235,1779017447000,-3753.96495443,0.0002421,2]
[422513236,1779017447000,-1290.8,0.00024324,2]
[422513239,1779017447000,-151.0,0.00024658,2]
[422513242,1779017447000,-319.0504328,0.00024658,2]
[422513241,1779017447000,-151.0,0.00024658,2]
[422513183,1779017447000,-4756.25301534,0.00023,2]
[422513231,1779017447000,-328.94,0.00024174,2]
[422513207,1779017447000,-700.0,0.00023011,2]
[422513240,1779017447000,-151.0,0.00024658,2]
[422513208,1779017447000,-700.0,0.00023011,2]
[422513212,1779017447000,-518.88,0.000232,7]
[422513188,1779017447000,-153.0,0.00023,2]
[422513187,1779017447000,-661.0,0.00023,2]
[422513186,1779017447000,-510.0,0.00023,2]
[422513185,1779017447000,-154.0,0.00023,2]
[422513191,1779017447000,-400.0,0.00023006,2]
[422513197,1779017447000,-400.0,0.00023006,2]
[422513202,1779017447000,-700.0,0.00023011,2]
[422513199,1779017447000,-273.0,0.00023011,2]
[422513194,1779017447000,-400.0,0.00023006,2]
[422513192,1779017447000,-400.0,0.00023006,2]
[422513195,1779017447000,-400.0,0.00023006,2]
[422513198,1779017447000,-431.0,0.00023006,2]
[422513184,1779017447000,-312270.16260368,0.00023,2]
[422513193,1779017447000,-400.0,0.00023006,2]
[422513213,1779017447000,-246.78,0.00023288,4]
[422513210,1779017447000,-270.0455652,0.0002303,2]
[422513209,1779017447000,-619.0,0.00023011,2]
[422513211,1779017447000,-178.53681148,0.000232,2]
[422513203,1779017447000,-700.0,0.00023011,2]
[422513205,1779017447000,-700.0,0.00023011,2]
[422513214,1779017447000,-1481.62475677,0.000233,2]
[422513204,1779017447000,-700.0,0.00023011,2]
[422513200,1779017447000,-700.0,0.00023011,2]
[422513201,1779017447000,-700.0,0.00023011,2]
[422513196,1779017447000,-400.0,0.00023006,2]
[422513206,1779017447000,-700.0,0.00023011,2]
[422513280,1779017448000,-346.34834306,0.00025397,2]
[422513279,1779017448000,-273.10789615,0.00025397,2]
[422513281,1779017448000,-253.60759476,0.00025571,2]
[422513282,1779017448000,-3393.40109511,0.0002558,21]
[422513277,1779017448000,-151.67,0.00025342,2]
[422513273,1779017448000,-1223.0,0.00025192,2]
[422513285,1779017448000,-160.0,0.00025663,2]
[422513275,1779017448000,-6055.0,0.00025192,2]
[422513276,1779017448000,-312.25238674,0.00025252,2]
[422513274,1779017448000,-3632.0,0.00025192,2]
[422513278,1779017448000,-154.44,0.00025342,2]
[422513284,1779017448000,-215.0785988,0.00025663,2]
[422513290,1779017448000,-220.0,0.00025695,2]
[422513286,1779017448000,-208.48490792,0.00025663,2]
[422513287,1779017448000,-313.72,0.00025665,5]
[422513288,1779017448000,-151.67,0.00025685,2]
[422513291,1779017448000,-177.70214321,0.000257,2]
[422513295,1779017448000,-728.65,0.00025786,2]
[422513292,1779017448000,-1927.0,0.000257,7]
[422513299,1779017448000,-177.70214321,0.000259,2]
[422513298,1779017448000,-160.14,0.00025811,7]
[422513297,1779017448000,-1993.8,0.00025786,2]
[422513296,1779017448000,-236.6,0.00025786,2]
[422513289,1779017448000,-154.44,0.00025685,2]
[422513293,1779017448000,-1338.79,0.00025786,2]
[422513272,1779017448000,-1270.0,0.00025192,2]
[422513283,1779017448000,-482.01,0.00025584,7]
[422513271,1779017448000,-154.44,0.00025,7]
[422513260,1779017448000,-7224.00226822,0.00025,2]
[422513268,1779017448000,-1580716.93585023,0.00025,2]
[422513294,1779017448000,-328.94,0.00025786,2]
[422513243,1779017448000,-151.67,0.00024658,2]
[422513244,1779017448000,-154.44,0.00024658,2]
[422513245,1779017448000,-181.83,0.00024658,2]
[422513247,1779017448000,-500.0,0.000249,9]
[422513246,1779017448000,-2000.0,0.000249,2]
[422513248,1779017448000,-2000.0,0.0002491,2]
[422513249,1779017448000,-2531.171739,0.0002492,2]
[422513250,1779017448000,-181.83,0.00024946,7]
[422513251,1779017448000,-151.0,0.00024959,7]
[422513261,1779017448000,-56617.88213438,0.00025,7]
[422513252,1779017448000,-151.0,0.00024997,7]
[422513263,1779017448000,-169.55879635,0.00025,2]
[422513257,1779017448000,-618.94857028,0.00025,2]
[422513256,1779017448000,-540.0,0.00025,2]
[422513254,1779017448000,-210.27121602,0.00025,2]
[422513253,1779017448000,-1128.85797423,0.00025,2]
[422513255,1779017448000,-1808.80138077,0.00025,2]
[422513258,1779017448000,-7063.72083826,0.00025,21]
[422513262,1779017448000,-2229.88706687,0.00025,2]
[422513269,1779017448000,-215.0785988,0.00025,7]
[422513267,1779017448000,-150.0,0.00025,2]
[422513266,1779017448000,-2279.78960302,0.00025,2]
[422513270,1779017448000,-151.67,0.00025,7]
[422513265,1779017448000,-541.96263774,0.00025,5]
[422513264,1779017448000,-4855.00204044,0.00025,2]
[422513259,1779017448000,-3084.00265286,0.00025,2]
[422513302,1779017448000,-219.34301534,0.00026,2]
[422513347,1779017448000,-500.0,0.00027123,2]
[422513301,1779017448000,-4582.9016728,0.00026,2]
[422513335,1779017448000,-2573.674008,0.0002701,2]
[422513331,1779017448000,-177.70214321,0.000267,2]
[422513333,1779017448000,-160.14,0.00026964,30]
[422513337,1779017448000,-164.16086875,0.00027072,2]
[422513338,1779017448000,-500.0,0.00027123,2]
[422513339,1779017448000,-500.0,0.00027123,2]
[422513346,1779017448000,-500.0,0.00027123,2]
[422513343,1779017448000,-500.0,0.00027123,2]
[422513342,1779017448000,-500.0,0.00027123,2]
[422513340,1779017448000,-500.0,0.00027123,2]
[422513345,1779017448000,-500.0,0.00027123,2]
[422513344,1779017448000,-500.0,0.00027123,2]
[422513332,1779017448000,-703.8582331,0.000268,2]
[422513360,1779017448000,-500.0,0.00027123,2]
[422513349,1779017448000,-500.0,0.00027123,2]
[422513354,1779017448000,-500.0,0.00027123,2]
[422513350,1779017448000,-500.0,0.00027123,2]
[422513358,1779017448000,-500.0,0.00027123,2]
[422513348,1779017448000,-500.0,0.00027123,2]
[422513359,1779017448000,-500.0,0.00027123,2]
[422513351,1779017448000,-500.0,0.00027123,2]
[422513353,1779017448000,-500.0,0.00027123,2]
[422513355,1779017448000,-500.0,0.00027123,2]
[422513357,1779017448000,-500.0,0.00027123,2]
[422513356,1779017448000,-500.0,0.00027123,2]
[422513311,1779017448000,-150.0,0.00026252,2]
[422513352,1779017448000,-500.0,0.00027123,2]
[422513334,1779017448000,-2000.0,0.00027,2]
[422513341,1779017448000,-500.0,0.00027123,2]
[422513329,1779017448000,-172.54,0.00026587,2]
[422513303,1779017448000,-400.29843382,0.00026,20]
[422513330,1779017448000,-160.14,0.00026676,7]
[422513300,1779017448000,-608.8270149,0.0002599,2]
[422513304,1779017448000,-151.67,0.00026027,7]
[422513306,1779017448000,-6717.0,0.00026087,2]
[422513308,1779017448000,-161.72,0.00026099,30]
[422513305,1779017448000,-154.44,0.00026027,7]
[422513310,1779017448000,-177.70214321,0.000262,2]
[422513309,1779017448000,-518.88,0.000261,7]
[422513313,1779017448000,-150.0,0.00026252,2]
[422513312,1779017448000,-161.862,0.00026252,2]
[422513314,1779017448000,-150.0,0.00026252,2]
[422513323,1779017448000,-346.34834306,0.00026397,2]
[422513324,1779017448000,-27858.5650879,0.000264,2]
[422513307,1779017448000,-160.14,0.00026099,30]
[422513327,1779017448000,-253.60759476,0.00026484,2]
[422513328,1779017448000,-220.0,0.00026517,2]
[422513315,1779017448000,-150.0,0.00026252,2]
[422513336,1779017448000,-298.59527362,0.00027054,2]
[422513325,1779017448000,-177.70214321,0.000264,2]
[422513326,1779017448000,-5530.0,0.000264,5]
[422513320,1779017448000,-1290.8,0.00026296,2]
[422513321,1779017448000,-160.14,0.00026388,2]
[422513319,1779017448000,-150.0,0.00026252,2]
[422513317,1779017448000,-150.0,0.00026252,2]
[422513318,1779017448000,-150.08,0.00026252,2]
[422513316,1779017448000,-166.969,0.00026252,2]
[422513322,1779017448000,-273.10789615,0.00026397,2]
[422513406,1779017449000,-204.1551231,0.000275,2]
[422513398,1779017449000,-341.61,0.000274,7]
[422513399,1779017449000,-1561.02,0.000274,14]
[422513404,1779017449000,-5196.0,0.000274,2]
[422513395,1779017449000,-182.07193077,0.00027397,7]
[422513390,1779017449000,-151.0,0.00027397,2]
[422513396,1779017449000,-230.89889538,0.00027397,7]
[422513397,1779017449000,-158.42,0.000274,7]
[422513391,1779017449000,-151.0,0.00027397,2]
[422513393,1779017449000,-5364.19,0.00027397,10]
[422513400,1779017449000,-5196.0,0.000274,2]
[422513407,1779017449000,-160.14,0.00027541,7]
[422513405,1779017449000,-482.01,0.00027445,7]
[422513417,1779017449000,-1270.0,0.00028192,2]
[422513403,1779017449000,-5196.0,0.000274,2]
[422513402,1779017449000,-5196.0,0.000274,2]
[422513409,1779017449000,-500.0,0.000278,7]
[422513419,1779017449000,-3632.0,0.00028192,2]
[422513420,1779017449000,-6055.0,0.00028192,2]
[422513408,1779017449000,-1481.62475677,0.0002755,2]
[422513414,1779017449000,-208.48490792,0.00028,10]
[422513411,1779017449000,-51595.40694348,0.00028,2]
[422513412,1779017449000,-160.0,0.00028,2]
[422513410,1779017449000,-160.14,0.0002783,30]
[422513413,1779017449000,-643.0,0.00028,2]
[422513392,1779017449000,-197.722187,0.00027397,2]
[422513401,1779017449000,-5196.0,0.000274,2]
[422513384,1779017449000,-500.0,0.00027397,2]
[422513361,1779017449000,-500.0,0.00027123,2]
[422513387,1779017449000,-1500.0,0.00027397,2]
[422513415,1779017449000,-518.88,0.000281,7]
[422513362,1779017449000,-500.0,0.00027123,2]
[422513363,1779017449000,-500.0,0.00027123,2]
[422513366,1779017449000,-500.0,0.00027123,2]
[422513370,1779017449000,-500.0,0.00027123,2]
[422513369,1779017449000,-500.0,0.00027123,2]
[422513365,1779017449000,-500.0,0.00027123,2]
[422513364,1779017449000,-500.0,0.00027123,2]
[422513367,1779017449000,-500.0,0.00027123,2]
[422513368,1779017449000,-778.86,0.00027123,2]
[422513371,1779017449000,-500.0,0.00027123,2]
[422513381,1779017449000,-500.0,0.00027397,2]
[422513382,1779017449000,-500.0,0.00027397,2]
[422513372,1779017449000,-500.0,0.00027123,2]
[422513374,1779017449000,-500.0,0.00027123,2]
[422513373,1779017449000,-500.0,0.00027123,2]
[422513375,1779017449000,-500.0,0.00027123,2]
[422513377,1779017449000,-160.14,0.00027253,2]
[422513376,1779017449000,-652.26,0.00027123,2]
[422513380,1779017449000,-253.60759476,0.00027397,2]
[422513379,1779017449000,-230.89889538,0.00027397,7]
[422513378,1779017449000,-182.07193077,0.00027397,7]
[422513383,1779017449000,-500.0,0.00027397,2]
[422513386,1779017449000,-275.30179489,0.00027397,2]
[422513385,1779017449000,-500.0,0.00027397,2]
[422513389,1779017449000,-300.0,0.00027397,2]
[422513388,1779017449000,-526.72,0.00027397,2]
[422513394,1779017449000,-10229.16,0.00027397,10]
[422513418,1779017449000,-1223.0,0.00028192,2]
[422513432,1779017449000,-472.95,0.0002863,2]
[422513422,1779017449000,-1290.8,0.00028267,2]
[422513452,1779017449000,-586.29,0.00028661,7]
[422513455,1779017449000,-151.52,0.0002867,7]
[422513453,1779017449000,-472.95,0.00028661,7]
[422513454,1779017449000,-567.52,0.00028661,7]
[422513459,1779017449000,-586.29,0.00028693,30]
[422513460,1779017449000,-472.95,0.00028693,30]
[422513458,1779017449000,-464.57,0.00028693,30]
[422513461,1779017449000,-567.52,0.00028693,30]
[422513462,1779017449000,-160.14,0.00028695,30]
[422513463,1779017449000,-434709.2992696,0.00028704,2]
[422513465,1779017449000,-151.52,0.0002871,30]
[422513467,1779017449000,-586.29,0.00028725,2]
[422513466,1779017449000,-464.57,0.00028725,2]
[422513468,1779017449000,-472.95,0.00028725,2]
[422513464,1779017449000,-2450.3220307,0.00028704,2]
[422513470,1779017449000,-156.27,0.0002875,30]
[422513469,1779017449000,-567.52,0.00028725,2]
[422513472,1779017449000,-151.52,0.0002875,2]
[422513475,1779017449000,-472.95,0.00028756,7]
[422513479,1779017449000,-472.95,0.00028788,30]
[422513477,1779017449000,-464.57,0.00028788,30]
[422513478,1779017449000,-586.29,0.00028788,30]
[422513474,1779017449000,-586.29,0.00028756,7]
[422513416,1779017449000,-160.14,0.00028118,2]
[422513476,1779017449000,-567.52,0.00028756,7]
[422513471,1779017449000,-159.12,0.0002875,30]
[422513480,1779017449000,-567.52,0.00028788,30]
[422513451,1779017449000,-464.57,0.00028661,7]
[422513446,1779017449000,-500.0,0.0002863,2]
[422513473,1779017449000,-464.57,0.00028756,7]
[422513449,1779017449000,-500.0,0.0002863,2]
[422513456,1779017449000,-156.27,0.0002869,7]
[422513421,1779017449000,-1561.02,0.000282,14]
[422513426,1779017449000,-162.96,0.00028493,2]
[422513424,1779017449000,-253.60759476,0.00028311,2]
[422513425,1779017449000,-160.14,0.00028406,7]
[422513427,1779017449000,-1927.0,0.000286,7]
[422513431,1779017449000,-159.12,0.0002863,2]
[422513429,1779017449000,-156.27,0.0002863,2]
[422513430,1779017449000,-586.29,0.0002863,2]
[422513428,1779017449000,-464.57,0.0002863,2]
[422513443,1779017449000,-500.0,0.0002863,2]
[422513444,1779017449000,-500.0,0.0002863,2]
[422513435,1779017449000,-500.0,0.0002863,2]
[422513423,1779017449000,-341.61,0.000283,7]
[422513436,1779017449000,-500.0,0.0002863,2]
[422513438,1779017449000,-500.0,0.0002863,2]
[422513457,1779017449000,-159.12,0.0002869,7]
[422513447,1779017449000,-762.37,0.0002863,2]
[422513445,1779017449000,-500.0,0.0002863,2]
[422513441,1779017449000,-500.0,0.0002863,2]
[422513448,1779017449000,-500.0,0.0002863,2]
[422513437,1779017449000,-500.0,0.0002863,2]
[422513434,1779017449000,-567.52,0.0002863,2]
[422513440,1779017449000,-500.0,0.0002863,2]
[422513450,1779017449000,-779.54,0.0002863,2]
[422513442,1779017449000,-500.0,0.0002863,2]
[422513439,1779017449000,-500.0,0.0002863,2]
[422513433,1779017449000,-151.52,0.0002863,2]
[422513507,1779017450000,-586.29,0.00028947,7]
[422513525,1779017450000,-156.27,0.00029052,7]
[422513510,1779017450000,-464.57,0.00028979,30]
[422513509,1779017450000,-151.52,0.00028951,30]
[422513511,1779017450000,-586.29,0.00028979,30]
[422513512,1779017450000,-472.95,0.00028979,30]
[422513515,1779017450000,-159.12,0.00028991,2]
[422513517,1779017450000,-509.70236039,0.00029,2]
[422513526,1779017450000,-159.12,0.00029052,7]
[422513514,1779017450000,-156.27,0.00028991,2]
[422513513,1779017450000,-160.14,0.00028983,2]
[422513519,1779017450000,-586.29,0.0002901,2]
[422513524,1779017450000,-472.95,0.00029042,7]
[422513522,1779017450000,-464.57,0.00029042,7]
[422513523,1779017450000,-586.29,0.00029042,7]
[422513521,1779017450000,-151.52,0.00029031,7]
[422513520,1779017450000,-472.95,0.0002901,2]
[422513527,1779017450000,-151.52,0.00029072,30]
[422513529,1779017450000,-586.29,0.00029074,30]
[422513528,1779017450000,-464.57,0.00029074,30]
[422513530,1779017450000,-472.95,0.00029074,30]
[422513508,1779017450000,-472.95,0.00028947,7]
[422513516,1779017450000,-151.52,0.00028991,2]
[422513506,1779017450000,-464.57,0.00028947,7]
[422513487,1779017450000,-567.52,0.0002882,2]
[422513500,1779017450000,-151.52,0.00028911,7]
[422513531,1779017450000,-1561.02,0.000291,14]
[422513481,1779017450000,-151.52,0.0002879,7]
[422513491,1779017450000,-472.95,0.00028852,7]
[422513492,1779017450000,-567.52,0.00028852,7]
[422513485,1779017450000,-586.29,0.0002882,2]
[422513484,1779017450000,-464.57,0.0002882,2]
[422513483,1779017450000,-159.12,0.0002881,2]
[422513482,1779017450000,-156.27,0.0002881,2]
[422513490,1779017450000,-586.29,0.00028852,7]
[422513489,1779017450000,-464.57,0.00028852,7]
[422513486,1779017450000,-472.95,0.0002882,2]
[422513488,1779017450000,-151.52,0.0002883,30]
[422513504,1779017450000,-156.27,0.00028931,30]
[422513494,1779017450000,-159.12,0.00028871,7]
[422513505,1779017450000,-159.12,0.00028931,30]
[422513499,1779017450000,-567.52,0.00028883,30]
[422513493,1779017450000,-156.27,0.00028871,7]
[422513496,1779017450000,-464.57,0.00028883,30]
[422513497,1779017450000,-586.29,0.00028883,30]
[422513495,1779017450000,-151.52,0.00028871,2]
[422513498,1779017450000,-472.95,0.00028883,30]
[422513502,1779017450000,-586.29,0.00028915,2]
[422513503,1779017450000,-472.95,0.00028915,2]
[422513501,1779017450000,-464.57,0.00028915,2]
[422513532,1779017450000,-464.57,0.00029105,2]
[422513518,1779017450000,-464.57,0.0002901,2]